[Event "Late-Titled-Tuesday-Blitz-October-10-2023"]
[Site "Chess.com"]
[Date "2023.10.10"]
[Round "5"]
[White "nihalsarin"]
[Black "lamomiajunior"]
[Result "1-0"]
[WhiteElo "3107"]
[BlackElo "2738"]
[TimeControl "180+1"]
[EndTime "14:48:26 PDT"]
[Termination "nihalsarin won by resignation"]

1. d4 {[%clk 0:03:00.9]} 1... Nf6 {[%clk 0:02:59.9]} 2. Nf3 {[%clk 0:03:01.7]}
2... d5 {[%clk 0:03:00.3]} 3. Bg5 {[%clk 0:03:02.4]} 3... Ne4 {[%clk 0:03:00.3]}
4. Bh4 {[%clk 0:03:03]} 4... c5 {[%clk 0:02:59.5]} 5. e3 {[%clk 0:03:03.7]} 5...
Nc6 {[%clk 0:02:58.7]} 6. Nbd2 {[%clk 0:03:04.1]} 6... Qb6 {[%clk 0:02:56.2]} 7.
c4 {[%clk 0:03:03.4]} 7... Nxd2 {[%clk 0:02:54.3]} 8. Qxd2 {[%clk 0:03:04.3]}
8... cxd4 {[%clk 0:02:43.4]} 9. cxd5 {[%clk 0:03:03.5]} 9... e6 {[%clk
0:02:41.3]} 10. a3 {[%clk 0:03:01.3]} 10... dxe3 {[%clk 0:02:40.1]} 11. fxe3
{[%clk 0:02:57.8]} 11... exd5 {[%clk 0:02:40.8]} 12. Bd3 {[%clk 0:02:58.5]}
12... Be6 {[%clk 0:02:40.4]} 13. O-O {[%clk 0:02:58.4]} 13... Bc5 {[%clk
0:02:40.7]} 14. Bf2 {[%clk 0:02:59]} 14... h6 {[%clk 0:02:40.3]} 15. b4 {[%clk
0:02:59.6]} 15... Bd6 {[%clk 0:02:39.4]} 16. e4 {[%clk 0:03:00.2]} 16... Qd8
{[%clk 0:02:39.2]} 17. exd5 {[%clk 0:03:00.3]} 17... Bxd5 {[%clk 0:02:39.8]} 18.
Rae1+ {[%clk 0:02:59.5]} 18... Ne7 {[%clk 0:01:57.8]} 19. Bb5+ {[%clk
0:02:57.4]} 19... Bc6 {[%clk 0:01:58.4]} 20. Bxc6+ {[%clk 0:02:57.1]} 20... bxc6
{[%clk 0:01:59.3]} 21. Rd1 {[%clk 0:02:57.2]} 21... Nd5 {[%clk 0:01:32.5]} 22.
b5 {[%clk 0:02:57.7]} 22... Bf4 {[%clk 0:01:19.7]} 23. Rfe1+ {[%clk 0:02:51.4]}
23... Kf8 {[%clk 0:01:18.8]} 24. Qd3 {[%clk 0:02:45.6]} 24... Bc7 {[%clk
0:01:13.4]} 25. bxc6 {[%clk 0:02:45.1]} 25... Ne7 {[%clk 0:01:13.8]} 26. Qe4
{[%clk 0:02:43.1]} 26... Qe8 {[%clk 0:01:12.8]} 27. Rd7 {[%clk 0:02:42.4]} 1-0

[Event "Late-Titled-Tuesday-Blitz-October-10-2023"]
[Site "Chess.com"]
[Date "2023.10.10"]
[Round "5"]
[White "Lion-Al-Messi"]
[Black "Mikhal867"]
[Result "1-0"]
[WhiteElo "2631"]
[BlackElo "2461"]
[TimeControl "180+1"]
[EndTime "14:48:30 PDT"]
[Termination "Lion-Al-Messi won by checkmate"]

1. e4 {[%clk 0:03:00.9]} 1... g6 {[%clk 0:02:59.3]} 2. d4 {[%clk 0:03:00]} 2...
Bg7 {[%clk 0:02:59.4]} 3. Nc3 {[%clk 0:02:59.2]} 3... d6 {[%clk 0:02:59.7]} 4.
Be3 {[%clk 0:02:58]} 4... a6 {[%clk 0:02:59.4]} 5. h4 {[%clk 0:02:53.9]} 5... h5
{[%clk 0:02:57.7]} 6. Qd2 {[%clk 0:02:53.3]} 6... Nd7 {[%clk 0:02:55.9]} 7. Nf3
{[%clk 0:02:52.8]} 7... Ngf6 {[%clk 0:02:53.9]} 8. Ng5 {[%clk 0:02:52.6]} 8...
Ng4 {[%clk 0:02:54]} 9. Bc4 {[%clk 0:02:51.1]} 9... e6 {[%clk 0:02:49.6]} 10.
Bxe6 {[%clk 0:02:45.9]} 10... fxe6 {[%clk 0:02:44]} 11. Nxe6 {[%clk 0:02:46.8]}
11... Qf6 {[%clk 0:02:34.6]} 12. Nd5 {[%clk 0:02:46]} 12... Qf7 {[%clk
0:02:19.3]} 13. Nexc7+ {[%clk 0:02:43.5]} 13... Kf8 {[%clk 0:02:02.3]} 14. Nxa8
{[%clk 0:02:42]} 14... Nxe3 {[%clk 0:02:01.4]} 15. fxe3 {[%clk 0:02:40.3]} 15...
Kg8 {[%clk 0:01:52.1]} 16. Rf1 {[%clk 0:02:36.5]} 16... Qe6 {[%clk 0:01:46.5]}
17. Nac7 {[%clk 0:02:36.6]} 17... Qg4 {[%clk 0:01:45.8]} 18. Ne8 {[%clk
0:02:25]} 18... Qxh4+ {[%clk 0:01:43.1]} 19. Qf2 {[%clk 0:02:19.9]} 19... Qxf2+
{[%clk 0:01:37.8]} 20. Rxf2 {[%clk 0:02:20.8]} 20... Bh6 {[%clk 0:01:31.3]} 21.
Ne7+ {[%clk 0:02:20.7]} 21... Kh7 {[%clk 0:01:26.7]} 22. Rf7+ {[%clk 0:02:21.6]}
22... Bg7 {[%clk 0:01:26]} 23. Rxg7+ {[%clk 0:02:16.1]} 23... Kh6 {[%clk
0:01:26]} 24. Rxg6+ {[%clk 0:02:14.9]} 24... Kh7 {[%clk 0:01:26]} 25. Rg7+
{[%clk 0:02:14.5]} 25... Kh6 {[%clk 0:01:26.2]} 26. Nf5# {[%clk 0:02:15.4]} 1-0

[Event "Late-Titled-Tuesday-Blitz-October-10-2023"]
[Site "Chess.com"]
[Date "2023.10.10"]
[Round "5"]
[White "flukeyNZ"]
[Black "cthake"]
[Result "1-0"]
[WhiteElo "2255"]
[BlackElo "1957"]
[TimeControl "180+1"]
[EndTime "14:48:34 PDT"]
[Termination "flukeyNZ won by resignation"]

1. d4 {[%clk 0:02:56.1]} 1... Nf6 {[%clk 0:02:58]} 2. c4 {[%clk 0:02:55.4]} 2...
c5 {[%clk 0:02:57.9]} 3. d5 {[%clk 0:02:55.3]} 3... d6 {[%clk 0:02:58]} 4. Nc3
{[%clk 0:02:54.3]} 4... g6 {[%clk 0:02:57.9]} 5. e4 {[%clk 0:02:51.5]} 5... Bg7
{[%clk 0:02:57.7]} 6. Bg5 {[%clk 0:02:52.1]} 6... O-O {[%clk 0:02:56]} 7. Nf3
{[%clk 0:02:48.5]} 7... e6 {[%clk 0:02:55.1]} 8. Nd2 {[%clk 0:02:46.5]} 8...
exd5 {[%clk 0:02:52.6]} 9. cxd5 {[%clk 0:02:45.3]} 9... Re8 {[%clk 0:02:51.7]}
10. Be2 {[%clk 0:02:41.4]} 10... a6 {[%clk 0:02:40.3]} 11. a4 {[%clk 0:02:39.5]}
11... Nbd7 {[%clk 0:02:33]} 12. O-O {[%clk 0:02:39.3]} 12... Rb8 {[%clk
0:02:31.5]} 13. a5 {[%clk 0:02:33.8]} 13... b5 {[%clk 0:02:27.7]} 14. axb6
{[%clk 0:02:32.9]} 14... Rxb6 {[%clk 0:02:27.3]} 15. Nc4 {[%clk 0:02:31.8]}
15... Rb4 {[%clk 0:02:01.9]} 16. Nxd6 {[%clk 0:02:30.8]} 16... Rf8 {[%clk
0:01:58]} 17. Nc4 {[%clk 0:02:16]} 17... Qc7 {[%clk 0:01:52.6]} 18. d6 {[%clk
0:02:07]} 18... Qc6 {[%clk 0:01:51.4]} 19. e5 {[%clk 0:02:00]} 19... Ne8 {[%clk
0:01:40.7]} 20. Nd5 {[%clk 0:01:58]} 20... Nxe5 {[%clk 0:01:38]} 21. Ne7+ {[%clk
0:01:57.1]} 1-0

[Event "Late-Titled-Tuesday-Blitz-October-10-2023"]
[Site "Chess.com"]
[Date "2023.10.10"]
[Round "5"]
[White "Ykow"]
[Black "Mariia89"]
[Result "1-0"]
[WhiteElo "2512"]
[BlackElo "2076"]
[TimeControl "180+1"]
[EndTime "14:48:59 PDT"]
[Termination "Ykow won by resignation"]

1. g4 {[%clk 0:03:00]} 1... c5 {[%clk 0:03:00]} 2. Bg2 {[%clk 0:02:59.8]} 2...
Nc6 {[%clk 0:02:59.9]} 3. c4 {[%clk 0:02:59.9]} 3... g5 {[%clk 0:02:58.4]} 4. h4
{[%clk 0:02:58.3]} 4... e6 {[%clk 0:02:46.3]} 5. hxg5 {[%clk 0:02:55.2]} 5...
Qxg5 {[%clk 0:02:45.9]} 6. Bf3 {[%clk 0:02:53.3]} 6... Qg7 {[%clk 0:02:33.5]} 7.
Nc3 {[%clk 0:02:51.8]} 7... Nf6 {[%clk 0:02:25.1]} 8. e3 {[%clk 0:02:48.5]} 8...
Ne5 {[%clk 0:02:18.7]} 9. Be2 {[%clk 0:02:46.5]} 9... Nfxg4 {[%clk 0:02:08.1]}
10. d4 {[%clk 0:02:45.1]} 10... cxd4 {[%clk 0:01:57.8]} 11. exd4 {[%clk
0:02:46]} 11... Nxf2 {[%clk 0:01:40.3]} 12. Kxf2 {[%clk 0:02:44.6]} 12... Qf6+
{[%clk 0:01:24.9]} 13. Ke1 {[%clk 0:02:39.6]} 13... Nc6 {[%clk 0:01:12.5]} 14.
Nf3 {[%clk 0:02:39.5]} 14... Bd6 {[%clk 0:01:01.6]} 15. Ne4 {[%clk 0:02:36.5]}
15... Bb4+ {[%clk 0:00:58.4]} 16. Kf1 {[%clk 0:02:36]} 16... Qf5 {[%clk
0:00:54.9]} 17. Bd3 {[%clk 0:02:34.5]} 17... Qg4 {[%clk 0:00:32.4]} 18. Nf6+
{[%clk 0:02:33.6]} 1-0

[Event "Late-Titled-Tuesday-Blitz-October-10-2023"]
[Site "Chess.com"]
[Date "2023.10.10"]
[Round "5"]
[White "IMGC"]
[Black "Mikhail_Golubev"]
[Result "0-1"]
[WhiteElo "2405"]
[BlackElo "2602"]
[TimeControl "180+1"]
[EndTime "14:49:05 PDT"]
[Termination "Mikhail_Golubev won by resignation"]

1. d4 {[%clk 0:02:59.7]} 1... Nf6 {[%clk 0:02:59.2]} 2. Nf3 {[%clk 0:02:58.8]}
2... g6 {[%clk 0:02:59.1]} 3. e3 {[%clk 0:02:59.1]} 3... Bg7 {[%clk 0:02:59.2]}
4. Be2 {[%clk 0:02:59.5]} 4... O-O {[%clk 0:02:59.7]} 5. O-O {[%clk 0:03:00.1]}
5... d6 {[%clk 0:02:59.9]} 6. c4 {[%clk 0:03:00.7]} 6... Nbd7 {[%clk 0:03:00.1]}
7. Nc3 {[%clk 0:03:01.5]} 7... e5 {[%clk 0:03:00.3]} 8. b4 {[%clk 0:02:58.3]}
8... exd4 {[%clk 0:02:57.7]} 9. exd4 {[%clk 0:02:57.5]} 9... Re8 {[%clk
0:02:56.6]} 10. Bb2 {[%clk 0:02:55.4]} 10... d5 {[%clk 0:02:53]} 11. c5 {[%clk
0:02:49.8]} 11... Nf8 {[%clk 0:02:46.9]} 12. Qb3 {[%clk 0:02:45.5]} 12... Bf5
{[%clk 0:02:36.5]} 13. Rfe1 {[%clk 0:02:43]} 13... Ne6 {[%clk 0:02:34.3]} 14.
Rad1 {[%clk 0:02:41.5]} 14... Nf4 {[%clk 0:02:29.9]} 15. Bf1 {[%clk 0:02:27.7]}
15... Ne4 {[%clk 0:02:05.5]} 16. g3 {[%clk 0:02:18.7]} 16... Bg4 {[%clk
0:02:05.6]} 17. Nxe4 {[%clk 0:01:50.9]} 17... dxe4 {[%clk 0:02:05.3]} 18. Ne5
{[%clk 0:01:51.4]} 18... Bxe5 {[%clk 0:02:04]} 19. dxe5 {[%clk 0:01:49.4]} 19...
Bxd1 {[%clk 0:02:00.6]} 20. Rxd1 {[%clk 0:01:50]} 20... Nd3 {[%clk 0:02:00.7]}
21. Bxd3 {[%clk 0:01:31.8]} 21... exd3 {[%clk 0:01:59.5]} 22. Rxd3 {[%clk
0:01:32.7]} 22... Qe7 {[%clk 0:01:52]} 23. e6 {[%clk 0:01:20.5]} 23... Qxe6
{[%clk 0:01:51.7]} 24. Qc3 {[%clk 0:01:20.3]} 24... Qe1+ {[%clk 0:01:51.1]} 25.
Kg2 {[%clk 0:01:20.9]} 25... Qxc3 {[%clk 0:01:49.2]} 26. Bxc3 {[%clk 0:01:21.8]}
26... Rad8 {[%clk 0:01:49]} 0-1

[Event "Late-Titled-Tuesday-Blitz-October-10-2023"]
[Site "Chess.com"]
[Date "2023.10.10"]
[Round "5"]
[White "Dhaydon19"]
[Black "arminmusovic"]
[Result "1-0"]
[WhiteElo "2782"]
[BlackElo "2506"]
[TimeControl "180+1"]
[EndTime "14:49:14 PDT"]
[Termination "Dhaydon19 won by checkmate"]

1. d4 {[%clk 0:03:00.9]} 1... d5 {[%clk 0:02:57.5]} 2. c4 {[%clk 0:03:00.4]}
2... c5 {[%clk 0:02:58.4]} 3. dxc5 {[%clk 0:02:57.1]} 3... e6 {[%clk 0:02:57.6]}
4. cxd5 {[%clk 0:02:56.2]} 4... Bxc5 {[%clk 0:02:57.9]} 5. Nc3 {[%clk
0:02:53.9]} 5... Nf6 {[%clk 0:02:57.6]} 6. Nf3 {[%clk 0:02:43.5]} 6... exd5
{[%clk 0:02:56.8]} 7. e3 {[%clk 0:02:42.7]} 7... O-O {[%clk 0:02:56.7]} 8. Be2
{[%clk 0:02:41.1]} 8... Nc6 {[%clk 0:02:57.2]} 9. O-O {[%clk 0:02:39.3]} 9... a6
{[%clk 0:02:57.8]} 10. a3 {[%clk 0:02:37.1]} 10... Re8 {[%clk 0:02:57.6]} 11. b4
{[%clk 0:02:35.2]} 11... Ba7 {[%clk 0:02:57.9]} 12. b5 {[%clk 0:02:35]} 12...
axb5 {[%clk 0:02:57.6]} 13. Nxb5 {[%clk 0:02:35.2]} 13... Bb8 {[%clk 0:02:57.9]}
14. Bb2 {[%clk 0:02:34.8]} 14... Be6 {[%clk 0:02:57.7]} 15. Rc1 {[%clk
0:02:31.3]} 15... Ne4 {[%clk 0:02:55]} 16. Nbd4 {[%clk 0:02:30.3]} 16... Bd7
{[%clk 0:02:55.4]} 17. Nb5 {[%clk 0:02:19.2]} 17... h6 {[%clk 0:02:50.8]} 18.
Qxd5 {[%clk 0:02:14.9]} 18... Nf6 {[%clk 0:02:47.7]} 19. Bxf6 {[%clk 0:02:13.4]}
19... gxf6 {[%clk 0:02:41.6]} 20. Rfd1 {[%clk 0:02:10.4]} 20... Be6 {[%clk
0:02:41.9]} 21. Qh5 {[%clk 0:02:07.7]} 21... Qe7 {[%clk 0:02:36]} 22. Qxh6
{[%clk 0:02:06.7]} 22... Ra4 {[%clk 0:02:36.3]} 23. Nfd4 {[%clk 0:02:02.6]}
23... Nxd4 {[%clk 0:02:34.2]} 24. Nxd4 {[%clk 0:01:57.2]} 24... Rxa3 {[%clk
0:02:20.6]} 25. Bb5 {[%clk 0:01:52.6]} 25... Rc8 {[%clk 0:02:07.4]} 26. Nxe6
{[%clk 0:01:45.4]} 26... Rxc1 {[%clk 0:01:58.7]} 27. Qg7# {[%clk 0:01:02]} 1-0

[Event "Late-Titled-Tuesday-Blitz-October-10-2023"]
[Site "Chess.com"]
[Date "2023.10.10"]
[Round "5"]
[White "Dontmesswithme_2"]
[Black "NelsonLinda"]
[Result "0-1"]
[WhiteElo "2416"]
[BlackElo "2585"]
[TimeControl "180+1"]
[EndTime "14:49:27 PDT"]
[Termination "NelsonLinda won by resignation"]

1. d4 {[%clk 0:02:15.5]} 1... Nf6 {[%clk 0:02:58.8]} 2. c4 {[%clk 0:02:14.1]}
2... c5 {[%clk 0:02:59.3]} 3. d5 {[%clk 0:02:14.1]} 3... b5 {[%clk 0:03:00]} 4.
cxb5 {[%clk 0:02:13.8]} 4... a6 {[%clk 0:03:00.7]} 5. bxa6 {[%clk 0:02:13.7]}
5... e6 {[%clk 0:03:01.1]} 6. dxe6 {[%clk 0:02:11.8]} 6... fxe6 {[%clk
0:03:00.9]} 7. Nc3 {[%clk 0:02:11.2]} 7... d5 {[%clk 0:02:56.4]} 8. g3 {[%clk
0:02:06.8]} 8... Bxa6 {[%clk 0:02:52.6]} 9. Bg2 {[%clk 0:02:06.1]} 9... Be7
{[%clk 0:02:49.6]} 10. Nf3 {[%clk 0:02:05.3]} 10... Nc6 {[%clk 0:02:48.8]} 11.
O-O {[%clk 0:02:03.4]} 11... O-O {[%clk 0:02:49.2]} 12. Re1 {[%clk 0:01:46.9]}
12... Rc8 {[%clk 0:02:35.1]} 13. e4 {[%clk 0:01:38.4]} 13... d4 {[%clk
0:02:33.9]} 14. e5 {[%clk 0:01:17.9]} 14... dxc3 {[%clk 0:02:33.3]} 15. exf6
{[%clk 0:01:15.7]} 15... Qxd1 {[%clk 0:02:33]} 16. Rxd1 {[%clk 0:01:16.2]} 16...
Bxf6 {[%clk 0:02:33.9]} 17. bxc3 {[%clk 0:01:13.4]} 17... Bxc3 {[%clk
0:02:30.1]} 18. Rb1 {[%clk 0:01:13.6]} 18... Be2 {[%clk 0:02:29.9]} 19. Rd6
{[%clk 0:01:11.2]} 19... Bxf3 {[%clk 0:02:27.5]} 20. Bh3 {[%clk 0:01:04.9]}
20... Nd4 {[%clk 0:02:23.2]} 21. Be3 {[%clk 0:01:02.7]} 21... Bd5 {[%clk
0:02:17.9]} 0-1

[Event "Late-Titled-Tuesday-Blitz-October-10-2023"]
[Site "Chess.com"]
[Date "2023.10.10"]
[Round "5"]
[White "TanitoluwaAps116"]
[Black "Zhigalko_Sergei"]
[Result "0-1"]
[WhiteElo "2694"]
[BlackElo "2898"]
[TimeControl "180+1"]
[EndTime "14:49:41 PDT"]
[Termination "Zhigalko_Sergei won on time"]

1. e4 {[%clk 0:02:39.3]} 1... c5 {[%clk 0:02:58.6]} 2. Nf3 {[%clk 0:02:38.8]}
2... Nc6 {[%clk 0:02:59.1]} 3. Bb5 {[%clk 0:02:30.4]} 3... Nf6 {[%clk
0:02:59.4]} 4. e5 {[%clk 0:02:23.2]} 4... Nd5 {[%clk 0:02:59.3]} 5. O-O {[%clk
0:02:19.3]} 5... Nc7 {[%clk 0:02:59.5]} 6. Bxc6 {[%clk 0:02:15.2]} 6... dxc6
{[%clk 0:03:00.4]} 7. d3 {[%clk 0:02:14]} 7... h6 {[%clk 0:03:00.5]} 8. h3
{[%clk 0:02:13.5]} 8... Bf5 {[%clk 0:03:00.3]} 9. Nc3 {[%clk 0:02:09.5]} 9...
Ne6 {[%clk 0:03:00.5]} 10. Be3 {[%clk 0:02:07.1]} 10... g5 {[%clk 0:03:00.3]}
11. Nd2 {[%clk 0:01:42.8]} 11... Bg7 {[%clk 0:02:58.4]} 12. f4 {[%clk
0:01:40.1]} 12... gxf4 {[%clk 0:02:55.7]} 13. Nb3 {[%clk 0:01:07.3]} 13... c4
{[%clk 0:02:37.3]} 14. Nd4 {[%clk 0:00:10.9]} 14... Nxd4 {[%clk 0:02:31.7]} 15.
Rxf4 {[%clk 0:00:10.6]} 15... Bxe5 {[%clk 0:02:32.1]} 16. Bxd4 {[%clk
0:00:05.2]} 16... Bxd4+ {[%clk 0:02:26.9]} 17. Kh1 {[%clk 0:00:04.5]} 17... Bg6
{[%clk 0:02:19]} 18. Qg4 {[%clk 0:00:03.5]} 18... Bxc3 {[%clk 0:02:14]} 19. bxc3
{[%clk 0:00:02.3]} 19... cxd3 {[%clk 0:02:14.1]} 0-1

[Event "Late-Titled-Tuesday-Blitz-October-10-2023"]
[Site "Chess.com"]
[Date "2023.10.10"]
[Round "5"]
[White "GMG"]
[Black "YouShallNotPass001"]
[Result "1-0"]
[WhiteElo "2720"]
[BlackElo "2416"]
[TimeControl "180+1"]
[EndTime "14:49:46 PDT"]
[Termination "GMG won by checkmate"]

1. Nf3 {[%clk 0:02:57.2]} 1... Nf6 {[%clk 0:03:00.2]} 2. g3 {[%clk 0:02:57.2]}
2... e6 {[%clk 0:03:01.1]} 3. c4 {[%clk 0:02:57.1]} 3... d5 {[%clk 0:02:59]} 4.
Bg2 {[%clk 0:02:58]} 4... a6 {[%clk 0:02:57.7]} 5. b3 {[%clk 0:02:55.8]} 5...
Be7 {[%clk 0:02:52.8]} 6. Bb2 {[%clk 0:02:55.8]} 6... O-O {[%clk 0:02:50.8]} 7.
O-O {[%clk 0:02:55.7]} 7... b5 {[%clk 0:02:48.5]} 8. Qc2 {[%clk 0:02:53.4]} 8...
Bb7 {[%clk 0:02:46.8]} 9. c5 {[%clk 0:02:46.1]} 9... c6 {[%clk 0:02:43.9]} 10.
d4 {[%clk 0:02:39.8]} 10... Nbd7 {[%clk 0:02:44.2]} 11. Nbd2 {[%clk 0:02:39.6]}
11... Qc7 {[%clk 0:02:41.9]} 12. b4 {[%clk 0:02:38.3]} 12... a5 {[%clk
0:02:31.9]} 13. a3 {[%clk 0:02:37.9]} 13... Rfe8 {[%clk 0:02:32.4]} 14. h3
{[%clk 0:02:35.1]} 14... Bf8 {[%clk 0:02:28.8]} 15. Ne5 {[%clk 0:02:34.2]} 15...
Nxe5 {[%clk 0:02:27.9]} 16. dxe5 {[%clk 0:02:35.1]} 16... Nd7 {[%clk 0:02:27.5]}
17. f4 {[%clk 0:02:35.6]} 17... axb4 {[%clk 0:02:09.2]} 18. axb4 {[%clk
0:02:36.5]} 18... Rxa1 {[%clk 0:02:08.9]} 19. Bxa1 {[%clk 0:02:29.7]} 19... g6
{[%clk 0:02:06.9]} 20. Nf3 {[%clk 0:02:28]} 20... Ra8 {[%clk 0:02:05.5]} 21. g4
{[%clk 0:02:24.5]} 21... Ra4 {[%clk 0:02:05.6]} 22. Bc3 {[%clk 0:02:17.4]} 22...
Qb8 {[%clk 0:02:01.6]} 23. f5 {[%clk 0:02:09.3]} 23... Nxc5 {[%clk 0:01:32.5]}
24. bxc5 {[%clk 0:01:58.9]} 24... Bxc5+ {[%clk 0:01:30.6]} 25. Kh1 {[%clk
0:01:59.5]} 25... d4 {[%clk 0:01:30.5]} 26. Bd2 {[%clk 0:01:52.7]} 26... Rc4
{[%clk 0:01:28.7]} 27. Qe4 {[%clk 0:01:51.6]} 27... Bb6 {[%clk 0:01:19.2]} 28.
fxe6 {[%clk 0:01:46.9]} 28... fxe6 {[%clk 0:01:18.5]} 29. Ng5 {[%clk 0:01:47]}
29... Qe8 {[%clk 0:01:18.1]} 30. Nf7 {[%clk 0:01:42.8]} 30... d3 {[%clk
0:01:12.6]} 31. Qf3 {[%clk 0:01:33.2]} 31... dxe2 {[%clk 0:01:09.7]} 32. Nh6+
{[%clk 0:01:33]} 32... Kg7 {[%clk 0:01:07.4]} 33. Qf6# {[%clk 0:01:33.9]} 1-0

[Event "Late-Titled-Tuesday-Blitz-October-10-2023"]
[Site "Chess.com"]
[Date "2023.10.10"]
[Round "5"]
[White "rikchessmx"]
[Black "dorpato"]
[Result "0-1"]
[WhiteElo "2314"]
[BlackElo "2072"]
[TimeControl "180+1"]
[EndTime "14:49:53 PDT"]
[Termination "dorpato won by checkmate"]

1. e4 {[%clk 0:02:55]} 1... c5 {[%clk 0:02:59.5]} 2. Nf3 {[%clk 0:02:54.3]} 2...
d6 {[%clk 0:02:59]} 3. d4 {[%clk 0:02:55.2]} 3... cxd4 {[%clk 0:02:59.5]} 4.
Nxd4 {[%clk 0:02:55.4]} 4... Nf6 {[%clk 0:03:00]} 5. Nc3 {[%clk 0:02:55.7]} 5...
a6 {[%clk 0:02:59.5]} 6. f4 {[%clk 0:02:54.2]} 6... e6 {[%clk 0:02:57.6]} 7. Bd3
{[%clk 0:02:53.4]} 7... Be7 {[%clk 0:02:57.2]} 8. Qf3 {[%clk 0:02:49.5]} 8...
Nc6 {[%clk 0:02:54.2]} 9. Be3 {[%clk 0:02:49.2]} 9... Bd7 {[%clk 0:02:44.5]} 10.
Nb3 {[%clk 0:02:48.8]} 10... b5 {[%clk 0:02:35.5]} 11. a3 {[%clk 0:02:48]} 11...
Rb8 {[%clk 0:02:23.5]} 12. O-O {[%clk 0:02:48.9]} 12... O-O {[%clk 0:02:17.9]}
13. g4 {[%clk 0:02:48]} 13... Ne8 {[%clk 0:02:01]} 14. g5 {[%clk 0:02:45.9]}
14... e5 {[%clk 0:01:56]} 15. h4 {[%clk 0:02:43.1]} 15... exf4 {[%clk
0:01:53.6]} 16. Bxf4 {[%clk 0:02:42.8]} 16... Ne5 {[%clk 0:01:54.2]} 17. Bxe5
{[%clk 0:02:41.6]} 17... dxe5 {[%clk 0:01:55.1]} 18. Kg2 {[%clk 0:02:36.1]}
18... f6 {[%clk 0:01:39.7]} 19. gxf6 {[%clk 0:02:11.3]} 19... Rxf6 {[%clk
0:01:34]} 20. Qe3 {[%clk 0:02:07.8]} 20... Rg6+ {[%clk 0:01:25.4]} 21. Kh1
{[%clk 0:02:00.6]} 21... Bxh4 {[%clk 0:01:19.6]} 22. Nd5 {[%clk 0:02:00.1]}
22... Nf6 {[%clk 0:01:14.9]} 23. c4 {[%clk 0:01:50.1]} 23... Nxd5 {[%clk
0:00:59.9]} 24. exd5 {[%clk 0:01:48.9]} 24... Bg3 {[%clk 0:00:53.3]} 25. Bxg6
{[%clk 0:01:46.3]} 25... Qh4+ {[%clk 0:00:47.2]} 26. Kg2 {[%clk 0:01:46.1]}
26... Bh3+ {[%clk 0:00:37.9]} 27. Kf3 {[%clk 0:01:45.8]} 27... Qg4# {[%clk
0:00:36.9]} 0-1

[Event "Late-Titled-Tuesday-Blitz-October-10-2023"]
[Site "Chess.com"]
[Date "2023.10.10"]
[Round "5"]
[White "Kostukov_Alex"]
[Black "ElCoachRene"]
[Result "1-0"]
[WhiteElo "2374"]
[BlackElo "2160"]
[TimeControl "180+1"]
[EndTime "14:50:08 PDT"]
[Termination "Kostukov_Alex won by resignation"]

1. g3 {[%clk 0:02:55.3]} 1... d5 {[%clk 0:02:57.9]} 2. Bg2 {[%clk 0:02:55.8]}
2... c6 {[%clk 0:02:58.8]} 3. d3 {[%clk 0:02:56.1]} 3... Bf5 {[%clk 0:02:58.9]}
4. e4 {[%clk 0:02:56.3]} 4... dxe4 {[%clk 0:02:58.2]} 5. dxe4 {[%clk 0:02:57.2]}
5... Qxd1+ {[%clk 0:02:57.2]} 6. Kxd1 {[%clk 0:02:54]} 6... Bg4+ {[%clk
0:02:56.9]} 7. f3 {[%clk 0:02:54.5]} 7... Be6 {[%clk 0:02:53.7]} 8. Be3 {[%clk
0:02:55.4]} 8... Na6 {[%clk 0:02:53]} 9. Nd2 {[%clk 0:02:56.3]} 9... g6 {[%clk
0:02:45]} 10. Bh3 {[%clk 0:02:55.7]} 10... Bxh3 {[%clk 0:02:43.4]} 11. Nxh3
{[%clk 0:02:55.2]} 11... Bg7 {[%clk 0:02:44.2]} 12. c3 {[%clk 0:02:55.8]} 12...
Nf6 {[%clk 0:02:44.6]} 13. Ke2 {[%clk 0:02:56.3]} 13... O-O {[%clk 0:02:43.2]}
14. a4 {[%clk 0:02:56.2]} 14... Rfd8 {[%clk 0:02:43]} 15. Nf2 {[%clk 0:02:56.2]}
15... Nc7 {[%clk 0:02:43.1]} 16. b4 {[%clk 0:02:55.9]} 16... Ne6 {[%clk
0:02:43]} 17. Nc4 {[%clk 0:02:55.4]} 17... Nd7 {[%clk 0:02:41.9]} 18. Rhc1
{[%clk 0:02:40.2]} 18... Ne5 {[%clk 0:02:40.6]} 19. Nxe5 {[%clk 0:02:34.6]}
19... Bxe5 {[%clk 0:02:41.5]} 20. f4 {[%clk 0:02:35]} 20... Bf6 {[%clk
0:02:39.6]} 21. e5 {[%clk 0:02:35.5]} 21... Bg7 {[%clk 0:02:39]} 22. Ne4 {[%clk
0:02:36.1]} 22... Nc7 {[%clk 0:02:37.3]} 23. c4 {[%clk 0:02:30.6]} 23... Na6
{[%clk 0:02:27.9]} 24. b5 {[%clk 0:02:29.3]} 24... Nb4 {[%clk 0:02:24]} 25. Rd1
{[%clk 0:02:07.7]} 25... Nc2 {[%clk 0:02:20.9]} 26. Rxd8+ {[%clk 0:01:48.3]}
26... Rxd8 {[%clk 0:02:19.4]} 27. Rc1 {[%clk 0:01:47.7]} 27... Nxe3 {[%clk
0:02:15.7]} 28. Kxe3 {[%clk 0:01:48.6]} 28... Kf8 {[%clk 0:02:04.2]} 29. Nc5
{[%clk 0:01:41.9]} 29... b6 {[%clk 0:01:58.5]} 30. Ne4 {[%clk 0:01:22.1]} 30...
Rc8 {[%clk 0:01:56.8]} 31. c5 {[%clk 0:01:13.6]} 31... cxb5 {[%clk 0:01:53.9]}
32. cxb6 {[%clk 0:01:11.5]} 1-0